Workbook

Sheet Kategorie I. - 2011
G1: Memoriál Petry Urbáškové - 23. ročník
G2: 2018-04-24
G3: Kategorie I.
A5: čítač | B5: Oddíl | C5: Poř. | F5: Ročník | G5: Oddíl | H5: D | I5: E | J5: Pen. | K5: S | L5: D | M5: E | N5: Pen. | O5: S | P5: D | Q5: E | R5: Pen. | S5: S | T5: Celkem
A6: =IF(T6=T7,C6&" - "&C7,IF(T6=T5,C5&" - "&C6,C6)) -> 1 | B6: =G6 -> KSG SK Přerov | C6: 1 | D6: Kubová | E6: Barbora | F6: 2011 | G6: KSG SK Přerov | H6: 0 | I6: 8.85 | K6: =IF(SUM(H6:I6)>0,(H6+I6-J6),0) -> 8.85 | L6: 0 | M6: 8.3 | O6: =IF(SUM(L6:M6)>0,(L6+M6-N6),0) -> 8.3 | P6: 0 | Q6: 7.77 | S6: =IF(SUM(P6:Q6)>0,(P6+Q6-R6),0) -> 7.77 | T6: =SUM(K6,O6,S6) -> 24.92
A7: 2 | B7: =G7 -> TJ Sokol M.Ostrava 1 | C7: 2 | D7: Novotná | E7: Sára Anna | F7: 2011 | G7: TJ Sokol M.Ostrava 1 | H7: 0 | I7: 8.6 | K7: =IF(SUM(H7:I7)>0,(H7+I7-J7),0) -> 8.6 | L7: 0 | M7: 7.8 | O7: =IF(SUM(L7:M7)>0,(L7+M7-N7),0) -> 7.8 | P7: 0 | Q7: 6.83 | S7: =IF(SUM(P7:Q7)>0,(P7+Q7-R7),0) -> 6.83 | T7: =SUM(K7,O7,S7) -> 23.23
A8: 3 | B8: TJ Sokol M.Ostrava 1 | C8: 3 | D8: Švrčková | E8: Anita | F8: 2011 | G8: TJ Sokol M.Ostrava 1 | H8: 0 | I8: 8.85 | K8: =IF(SUM(H8:I8)>0,(H8+I8-J8),0) -> 8.85 | L8: 0 | M8: 7.75 | O8: =IF(SUM(L8:M8)>0,(L8+M8-N8),0) -> 7.75 | P8: 0 | Q8: 6.53 | S8: =IF(SUM(P8:Q8)>0,(P8+Q8-R8),0) -> 6.53 | T8: =SUM(K8,O8,S8) -> 23.13
A9: 4 | B9: TJ Sokol M.Ostrava 1 | C9: 4 | D9: Řehulková | E9: Alice | F9: 2011 | G9: TJ Sokol M.Ostrava 1 | H9: 0 | I9: 8.7 | K9: =IF(SUM(H9:I9)>0,(H9+I9-J9),0) -> 8.7 | L9: 0 | M9: 7.7 | O9: =IF(SUM(L9:M9)>0,(L9+M9-N9),0) -> 7.7 | P9: 0 | Q9: 6.03 | S9: =IF(SUM(P9:Q9)>0,(P9+Q9-R9),0) -> 6.03 | T9: =SUM(K9,O9,S9) -> 22.43
A10: 5 - 6 | B10: GK Šumperk | C10: 5 | D10: Hermannová | E10: Markéta | F10: 2011 | G10: GK Šumperk | H10: 0 | I10: 8.15 | K10: =IF(SUM(H10:I10)>0,(H10+I10-J10),0) -> 8.15 | L10: 0 | M10: 7.5 | O10: =IF(SUM(L10:M10)>0,(L10+M10-N10),0) -> 7.5 | P10: 0 | Q10: 6.47 | S10: =IF(SUM(P10:Q10)>0,(P10+Q10-R10),0) -> 6.47 | T10: =SUM(K10,O10,S10) -> 22.12
A11: 5 - 6 | B11: KSG SK Přerov | C11: 6 | D11: Otáhalová | E11: Barbora | F11: 2011 | G11: KSG SK Přerov | H11: 0 | I11: 8.5 | K11: =IF(SUM(H11:I11)>0,(H11+I11-J11),0) -> 8.5 | L11: 0 | M11: 7.15 | O11: =IF(SUM(L11:M11)>0,(L11+M11-N11),0) -> 7.15 | P11: 0 | Q11: 6.47 | S11: =IF(SUM(P11:Q11)>0,(P11+Q11-R11),0) -> 6.47 | T11: =SUM(K11,O11,S11) -> 22.12
A12: 7 | B12: TJ Sokol M.Ostrava 1 | C12: 7 | D12: Švábková | E12: Sofie | F12: 2011 | G12: TJ Sokol M.Ostrava 1 | H12: 0 | I12: 8.4 | K12: =IF(SUM(H12:I12)>0,(H12+I12-J12),0) -> 8.4 | L12: 0 | M12: 5.45 | O12: =IF(SUM(L12:M12)>0,(L12+M12-N12),0) -> 5.45 | P12: 0 | Q12: 6.83 | S12: =IF(SUM(P12:Q12)>0,(P12+Q12-R12),0) -> 6.83 | T12: =SUM(K12,O12,S12) -> 20.68
A13: 9 - 10 | B13: 0 | C13: 9 | K13: =IF(SUM(H13:I13)>0,(H13+I13-J13),0) -> 0 | O13: =IF(SUM(L13:M13)>0,(L13+M13-N13),0) -> 0 | S13: =IF(SUM(P13:Q13)>0,(P13+Q13-R13),0) -> 0 | T13: =SUM(K13,O13,S13) -> 0
A14: 10 - 11 | B14: 0 | C14: 10 | K14: =IF(SUM(H14:I14)>0,(H14+I14-J14),0) -> 0 | O14: =IF(SUM(L14:M14)>0,(L14+M14-N14),0) -> 0 | S14: =IF(SUM(P14:Q14)>0,(P14+Q14-R14),0) -> 0 | T14: =SUM(K14,O14,S14) -> 0
A15: 11 - 12 | B15: 0 | C15: 11 | K15: =IF(SUM(H15:I15)>0,(H15+I15-J15),0) -> 0 | O15: =IF(SUM(L15:M15)>0,(L15+M15-N15),0) -> 0 | S15: =IF(SUM(P15:Q15)>0,(P15+Q15-R15),0) -> 0 | T15: =SUM(K15,O15,S15) -> 0
A16: 12 - 13 | B16: 0 | C16: 12 | K16: =IF(SUM(H16:I16)>0,(H16+I16-J16),0) -> 0 | O16: =IF(SUM(L16:M16)>0,(L16+M16-N16),0) -> 0 | S16: =IF(SUM(P16:Q16)>0,(P16+Q16-R16),0) -> 0 | T16: =SUM(K16,O16,S16) -> 0
A17: 13 - 14 | B17: 0 | C17: 13 | K17: =IF(SUM(H17:I17)>0,(H17+I17-J17),0) -> 0 | O17: =IF(SUM(L17:M17)>0,(L17+M17-N17),0) -> 0 | S17: =IF(SUM(P17:Q17)>0,(P17+Q17-R17),0) -> 0 | T17: =SUM(K17,O17,S17) -> 0
A18: 14 - 15 | B18: 0 | C18: 14 | K18: =IF(SUM(H18:I18)>0,(H18+I18-J18),0) -> 0 | O18: =IF(SUM(L18:M18)>0,(L18+M18-N18),0) -> 0 | S18: =IF(SUM(P18:Q18)>0,(P18+Q18-R18),0) -> 0 | T18: =SUM(K18,O18,S18) -> 0
A19: 15 - 16 | B19: 0 | C19: 15 | K19: =IF(SUM(H19:I19)>0,(H19+I19-J19),0) -> 0 | O19: =IF(SUM(L19:M19)>0,(L19+M19-N19),0) -> 0 | S19: =IF(SUM(P19:Q19)>0,(P19+Q19-R19),0) -> 0 | T19: =SUM(K19,O19,S19) -> 0
A20: 16 - 17 | B20: 0 | C20: 16 | K20: =IF(SUM(H20:I20)>0,(H20+I20-J20),0) -> 0 | O20: =IF(SUM(L20:M20)>0,(L20+M20-N20),0) -> 0 | S20: =IF(SUM(P20:Q20)>0,(P20+Q20-R20),0) -> 0 | T20: =SUM(K20,O20,S20) -> 0
A21: 17 - 18 | B21: 0 | C21: 17 | K21: =IF(SUM(H21:I21)>0,(H21+I21-J21),0) -> 0 | O21: =IF(SUM(L21:M21)>0,(L21+M21-N21),0) -> 0 | S21: =IF(SUM(P21:Q21)>0,(P21+Q21-R21),0) -> 0 | T21: =SUM(K21,O21,S21) -> 0
A22: 18 - 19 | B22: 0 | C22: 18 | K22: =IF(SUM(H22:I22)>0,(H22+I22-J22),0) -> 0 | O22: =IF(SUM(L22:M22)>0,(L22+M22-N22),0) -> 0 | S22: =IF(SUM(P22:Q22)>0,(P22+Q22-R22),0) -> 0 | T22: =SUM(K22,O22,S22) -> 0
A23: 19 - 20 | B23: 0 | C23: 19 | K23: =IF(SUM(H23:I23)>0,(H23+I23-J23),0) -> 0 | O23: =IF(SUM(L23:M23)>0,(L23+M23-N23),0) -> 0 | S23: =IF(SUM(P23:Q23)>0,(P23+Q23-R23),0) -> 0 | T23: =SUM(K23,O23,S23) -> 0
A24: 20 - 21 | B24: 0 | C24: 20 | K24: =IF(SUM(H24:I24)>0,(H24+I24-J24),0) -> 0 | O24: =IF(SUM(L24:M24)>0,(L24+M24-N24),0) -> 0 | S24: =IF(SUM(P24:Q24)>0,(P24+Q24-R24),0) -> 0 | T24: =SUM(K24,O24,S24) -> 0
A25: 21 - 22 | B25: 0 | C25: 21 | K25: =IF(SUM(H25:I25)>0,(H25+I25-J25),0) -> 0 | O25: =IF(SUM(L25:M25)>0,(L25+M25-N25),0) -> 0 | S25: =IF(SUM(P25:Q25)>0,(P25+Q25-R25),0) -> 0 | T25: =SUM(K25,O25,S25) -> 0
A26: 22 - | B26: 0 | C26: 22 | K26: =IF(SUM(H26:I26)>0,(H26+I26-J26),0) -> 0 | O26: =IF(SUM(L26:M26)>0,(L26+M26-N26),0) -> 0 | S26: =IF(SUM(P26:Q26)>0,(P26+Q26-R26),0) -> 0 | T26: =SUM(K26,O26,S26) -> 0
A27: - | B27: 0
D30: Ředitel závodu: Mgr. Zdena Langerová | H30: Hlavní rozhodčí: Mgr. Kateřina Valová | P30: Rozhodčí:

Sheet Kategorie I. - 2010
G1: Memoriál Petry Urbáškové - 23. ročník
G2: 2018-04-24
G3: Kategorie I.
A5: čítač | B5: Oddíl | C5: Poř. | F5: Ročník | G5: Oddíl | H5: D | I5: E | J5: Pen. | K5: S | L5: D | M5: E | N5: Pen. | O5: S | P5: D | Q5: E | R5: Pen. | S5: S | T5: Celkem
A6: =IF(T6=T7,C6&" - "&C7,IF(T6=T5,C5&" - "&C6,C6)) -> 1 | B6: =G6 -> TJ Sokol M.Ostrava 1 | C6: 1 | D6: Pačutová | E6: Mahulena | F6: 2010 | G6: TJ Sokol M.Ostrava 1 | H6: 0 | I6: 8.95 | K6: =IF(SUM(H6:I6)>0,(H6+I6-J6),0) -> 8.95 | L6: 0 | M6: 9 | O6: =IF(SUM(L6:M6)>0,(L6+M6-N6),0) -> 9 | P6: 0 | Q6: 8.1 | S6: =IF(SUM(P6:Q6)>0,(P6+Q6-R6),0) -> 8.1 | T6: =SUM(K6,O6,S6) -> 26.05
A7: 2 | B7: =G7 -> SK UP Olomouc | C7: 2 | D7: Korčiánová | E7: Karolína | F7: 2010 | G7: SK UP Olomouc | H7: 0 | I7: 8.5 | K7: =IF(SUM(H7:I7)>0,(H7+I7-J7),0) -> 8.5 | L7: 0 | M7: 9.15 | O7: =IF(SUM(L7:M7)>0,(L7+M7-N7),0) -> 9.15 | P7: 0 | Q7: 8.3 | S7: =IF(SUM(P7:Q7)>0,(P7+Q7-R7),0) -> 8.3 | T7: =SUM(K7,O7,S7) -> 25.95
A8: 3 | B8: TJ Sokol M.Ostrava 1 | C8: 3 | D8: Vojtková | E8: Nela | F8: 2010 | G8: TJ Sokol M.Ostrava 1 | H8: 0 | I8: 8.95 | K8: =IF(SUM(H8:I8)>0,(H8+I8-J8),0) -> 8.95 | L8: 0 | M8: 8.7 | O8: =IF(SUM(L8:M8)>0,(L8+M8-N8),0) -> 8.7 | P8: 0 | Q8: 7.2 | S8: =IF(SUM(P8:Q8)>0,(P8+Q8-R8),0) -> 7.2 | T8: =SUM(K8,O8,S8) -> 24.85
A9: 4 | B9: TJ Sokol M.Ostrava 1 | C9: 4 | D9: Steckerová | E9: Sabina | F9: 2010 | G9: TJ Sokol M.Ostrava 1 | H9: 0 | I9: 8.75 | K9: =IF(SUM(H9:I9)>0,(H9+I9-J9),0) -> 8.75 | L9: 0 | M9: 8.45 | O9: =IF(SUM(L9:M9)>0,(L9+M9-N9),0) -> 8.45 | P9: 0 | Q9: 6.6 | S9: =IF(SUM(P9:Q9)>0,(P9+Q9-R9),0) -> 6.6 | T9: =SUM(K9,O9,S9) -> 23.8
A10: 5 | B10: Gymnastika Zlín | C10: 5 | D10: Löfflerová | E10: Kristýna | F10: 2010 | G10: Gymnastika Zlín | H10: 0 | I10: 9.05 | K10: =IF(SUM(H10:I10)>0,(H10+I10-J10),0) -> 9.05 | L10: 0 | M10: 7.25 | O10: =IF(SUM(L10:M10)>0,(L10+M10-N10),0) -> 7.25 | P10: 0 | Q10: 7.27 | S10: =IF(SUM(P10:Q10)>0,(P10+Q10-R10),0) -> 7.27 | T10: =SUM(K10,O10,S10) -> 23.57
A11: 6 | B11: KSG SK Přerov | C11: 6 | D11: Manová | E11: Sabina | F11: 2010 | G11: KSG SK Přerov | H11: 0 | I11: 8.75 | K11: =IF(SUM(H11:I11)>0,(H11+I11-J11),0) -> 8.75 | L11: 0 | M11: 7.75 | O11: =IF(SUM(L11:M11)>0,(L11+M11-N11),0) -> 7.75 | P11: 0 | Q11: 6.87 | S11: =IF(SUM(P11:Q11)>0,(P11+Q11-R11),0) -> 6.87 | T11: =SUM(K11,O11,S11) -> 23.37
A12: 7 | B12: SK UP Olomouc | C12: 7 | D12: Kramplová | E12: Eliška | F12: 2010 | G12: SK UP Olomouc | H12: 0 | I12: 8.2 | K12: =IF(SUM(H12:I12)>0,(H12+I12-J12),0) -> 8.2 | L12: 0 | M12: 7.65 | O12: =IF(SUM(L12:M12)>0,(L12+M12-N12),0) -> 7.65 | P12: 0 | Q12: 7.4 | S12: =IF(SUM(P12:Q12)>0,(P12+Q12-R12),0) -> 7.4 | T12: =SUM(K12,O12,S12) -> 23.25
A13: 8 | B13: TJ Sokol Kopřivnice | C13: 8 | D13: Čubová | E13: Nela | F13: 2010 | G13: TJ Sokol Kopřivnice | H13: 0 | I13: 8.65 | K13: =IF(SUM(H13:I13)>0,(H13+I13-J13),0) -> 8.65 | L13: 0 | M13: 6.85 | O13: =IF(SUM(L13:M13)>0,(L13+M13-N13),0) -> 6.85 | P13: 0 | Q13: 7.07 | S13: =IF(SUM(P13:Q13)>0,(P13+Q13-R13),0) -> 7.07 | T13: =SUM(K13,O13,S13) -> 22.57
A14: 9 | B14: KSG SK Přerov | C14: 9 | D14: Novotná | E14: Julie | F14: 2010 | G14: KSG SK Přerov | H14: 0 | I14: 8.75 | K14: =IF(SUM(H14:I14)>0,(H14+I14-J14),0) -> 8.75 | L14: 0 | M14: 7.85 | O14: =IF(SUM(L14:M14)>0,(L14+M14-N14),0) -> 7.85 | P14: 0 | Q14: 5.9 | S14: =IF(SUM(P14:Q14)>0,(P14+Q14-R14),0) -> 5.9 | T14: =SUM(K14,O14,S14) -> 22.5
A15: 10 | B15: ŠK ŠG GY-TY Poprad | C15: 10 | D15: Šavelová | E15: Diana | F15: 2010 | G15: ŠK ŠG GY-TY Poprad | H15: 0 | I15: 8.5 | K15: =IF(SUM(H15:I15)>0,(H15+I15-J15),0) -> 8.5 | L15: 0 | M15: 6.85 | O15: =IF(SUM(L15:M15)>0,(L15+M15-N15),0) -> 6.85 | P15: 0 | Q15: 6.83 | S15: =IF(SUM(P15:Q15)>0,(P15+Q15-R15),0) -> 6.83 | T15: =SUM(K15,O15,S15) -> 22.18
A16: 11 | B16: TJ Sokol M.Ostrava 1 | C16: 11 | D16: Klučková | E16: Hana | F16: 2010 | G16: TJ Sokol M.Ostrava 1 | H16: 0 | I16: 8.2 | K16: =IF(SUM(H16:I16)>0,(H16+I16-J16),0) -> 8.2 | L16: 0 | M16: 6.25 | O16: =IF(SUM(L16:M16)>0,(L16+M16-N16),0) -> 6.25 | P16: 0 | Q16: 7.37 | S16: =IF(SUM(P16:Q16)>0,(P16+Q16-R16),0) -> 7.37 | T16: =SUM(K16,O16,S16) -> 21.82
A17: 12 | B17: GK Šumperk | C17: 12 | D17: Langerová | E17: Tereza | F17: 2010 | G17: GK Šumperk | H17: 0 | I17: 6.75 | K17: =IF(SUM(H17:I17)>0,(H17+I17-J17),0) -> 6.75 | L17: 0 | M17: 2.35 | O17: =IF(SUM(L17:M17)>0,(L17+M17-N17),0) -> 2.35 | P17: 0 | Q17: 5.27 | R17: 2 | S17: =IF(SUM(P17:Q17)>0,(P17+Q17-R17),0) -> 3.27 | T17: =SUM(K17,O17,S17) -> 12.37
A18: 13 - 14 | B18: 0 | C18: 13 | K18: =IF(SUM(H18:I18)>0,(H18+I18-J18),0) -> 0 | O18: =IF(SUM(L18:M18)>0,(L18+M18-N18),0) -> 0 | S18: =IF(SUM(P18:Q18)>0,(P18+Q18-R18),0) -> 0 | T18: =SUM(K18,O18,S18) -> 0
A19: 14 - 15 | B19: 0 | C19: 14 | K19: =IF(SUM(H19:I19)>0,(H19+I19-J19),0) -> 0 | O19: =IF(SUM(L19:M19)>0,(L19+M19-N19),0) -> 0 | S19: =IF(SUM(P19:Q19)>0,(P19+Q19-R19),0) -> 0 | T19: =SUM(K19,O19,S19) -> 0
A20: 15 - 16 | B20: 0 | C20: 15 | K20: =IF(SUM(H20:I20)>0,(H20+I20-J20),0) -> 0 | O20: =IF(SUM(L20:M20)>0,(L20+M20-N20),0) -> 0 | S20: =IF(SUM(P20:Q20)>0,(P20+Q20-R20),0) -> 0 | T20: =SUM(K20,O20,S20) -> 0
A21: 16 - 17 | B21: 0 | C21: 16 | K21: =IF(SUM(H21:I21)>0,(H21+I21-J21),0) -> 0 | O21: =IF(SUM(L21:M21)>0,(L21+M21-N21),0) -> 0 | S21: =IF(SUM(P21:Q21)>0,(P21+Q21-R21),0) -> 0 | T21: =SUM(K21,O21,S21) -> 0
A22: 17 - 18 | B22: 0 | C22: 17 | K22: =IF(SUM(H22:I22)>0,(H22+I22-J22),0) -> 0 | O22: =IF(SUM(L22:M22)>0,(L22+M22-N22),0) -> 0 | S22: =IF(SUM(P22:Q22)>0,(P22+Q22-R22),0) -> 0 | T22: =SUM(K22,O22,S22) -> 0
A23: 18 - 19 | B23: 0 | C23: 18 | K23: =IF(SUM(H23:I23)>0,(H23+I23-J23),0) -> 0 | O23: =IF(SUM(L23:M23)>0,(L23+M23-N23),0) -> 0 | S23: =IF(SUM(P23:Q23)>0,(P23+Q23-R23),0) -> 0 | T23: =SUM(K23,O23,S23) -> 0
A24: 19 - 20 | B24: 0 | C24: 19 | K24: =IF(SUM(H24:I24)>0,(H24+I24-J24),0) -> 0 | O24: =IF(SUM(L24:M24)>0,(L24+M24-N24),0) -> 0 | S24: =IF(SUM(P24:Q24)>0,(P24+Q24-R24),0) -> 0 | T24: =SUM(K24,O24,S24) -> 0
A25: 20 - 21 | B25: 0 | C25: 20 | K25: =IF(SUM(H25:I25)>0,(H25+I25-J25),0) -> 0 | O25: =IF(SUM(L25:M25)>0,(L25+M25-N25),0) -> 0 | S25: =IF(SUM(P25:Q25)>0,(P25+Q25-R25),0) -> 0 | T25: =SUM(K25,O25,S25) -> 0
A26: 21 - 22 | B26: 0 | C26: 21 | K26: =IF(SUM(H26:I26)>0,(H26+I26-J26),0) -> 0 | O26: =IF(SUM(L26:M26)>0,(L26+M26-N26),0) -> 0 | S26: =IF(SUM(P26:Q26)>0,(P26+Q26-R26),0) -> 0 | T26: =SUM(K26,O26,S26) -> 0
A27: 22 - | B27: 0 | C27: 22 | K27: =IF(SUM(H27:I27)>0,(H27+I27-J27),0) -> 0 | O27: =IF(SUM(L27:M27)>0,(L27+M27-N27),0) -> 0 | S27: =IF(SUM(P27:Q27)>0,(P27+Q27-R27),0) -> 0 | T27: =SUM(K27,O27,S27) -> 0
D30: Ředitel závodu: Mgr. Zdena Langerová | H30: Hlavní rozhodčí: Mgr. Kateřina Valová | P30: Rozhodčí:

Sheet Kategorie II. - 2009
G1: Memoriál Petry Urbáškové - 22. ročník
G2: 2018-04-24
G3: Kategorie II.
A5: čítač | B5: Oddíl | C5: Poř. | D5: Příjmení, Jméno | F5: Ročník | G5: Oddíl | H5: D | I5: E | J5: Pen. | K5: S | L5: D | M5: E | N5: Pen. | O5: S | P5: D | Q5: E | R5: Pen. | S5: S | T5: Celkem
A6: =IF(T6=T7,C6&" - "&C7,IF(T6=T5,C5&" - "&C6,C6)) -> 1 | B6: =G6 -> GK Šumperk | C6: 1 | D6: Machytková | E6: Jitka | F6: 2009 | G6: GK Šumperk | H6: 2.3 | I6: 8.5 | K6: =IF(SUM(H6:I6)>0,(H6+I6-J6),0) -> 10.8 | L6: 3 | M6: 7.86 | O6: =IF(SUM(L6:M6)>0,(L6+M6-N6),0) -> 10.86 | P6: 2.2 | Q6: 7.9 | S6: =IF(SUM(P6:Q6)>0,(P6+Q6-R6),0) -> 10.1 | T6: =SUM(K6,O6,S6) -> 31.76
A7: 2 | B7: GK Šumperk | C7: 2 | D7: Machytková | E7: Lenka | F7: 2009 | G7: GK Šumperk | H7: 2.3 | I7: 6.85 | K7: =IF(SUM(H7:I7)>0,(H7+I7-J7),0) -> 9.15 | L7: 3 | M7: 8.46 | O7: =IF(SUM(L7:M7)>0,(L7+M7-N7),0) -> 11.46 | P7: 2.3 | Q7: 7.8 | S7: =IF(SUM(P7:Q7)>0,(P7+Q7-R7),0) -> 10.1 | T7: =SUM(K7,O7,S7) -> 30.71
A8: 3 | B8: GK Šumperk | C8: 3 | D8: Janků | E8: Michaela | F8: 2009 | G8: GK Šumperk | H8: 2.3 | I8: 7 | K8: =IF(SUM(H8:I8)>0,(H8+I8-J8),0) -> 9.3 | L8: 3 | M8: 7.13 | O8: =IF(SUM(L8:M8)>0,(L8+M8-N8),0) -> 10.13 | P8: 2.2 | Q8: 8.05 | S8: =IF(SUM(P8:Q8)>0,(P8+Q8-R8),0) -> 10.25 | T8: =SUM(K8,O8,S8) -> 29.68
A9: 4 | B9: TJ Sokol M.Ostrava 1 | C9: 4 | D9: Vrátná | E9: Johana | F9: 2009 | G9: TJ Sokol M.Ostrava 1 | H9: 2.3 | I9: 7.25 | K9: =IF(SUM(H9:I9)>0,(H9+I9-J9),0) -> 9.55 | L9: 2.8 | M9: 6 | O9: =IF(SUM(L9:M9)>0,(L9+M9-N9),0) -> 8.8 | P9: 2.3 | Q9: 7.65 | S9: =IF(SUM(P9:Q9)>0,(P9+Q9-R9),0) -> 9.95 | T9: =SUM(K9,O9,S9) -> 28.3
A10: 5 | B10: TJ Sokol M.Ostrava 1 | C10: 5 | D10: Švrčková | E10: Ella | F10: 2009 | G10: TJ Sokol M.Ostrava 1 | H10: 1.7 | I10: 6.15 | K10: =IF(SUM(H10:I10)>0,(H10+I10-J10),0) -> 7.85 | L10: 2 | M10: 5.36 | O10: =IF(SUM(L10:M10)>0,(L10+M10-N10),0) -> 7.36 | P10: 1.4 | Q10: 7.2 | R10: 0.5 | S10: =IF(SUM(P10:Q10)>0,(P10+Q10-R10),0) -> 8.1 | T10: =SUM(K10,O10,S10) -> 23.31
A11: 6 | B11: TJ Sokol M.Ostrava 1 | C11: 6 | D11: Ševčíková | E11: Natálie | F11: 2009 | G11: TJ Sokol M.Ostrava 1 | H11: 1.7 | I11: 6.9 | K11: =IF(SUM(H11:I11)>0,(H11+I11-J11),0) -> 8.6 | L11: 2 | M11: 5.2 | O11: =IF(SUM(L11:M11)>0,(L11+M11-N11),0) -> 7.2 | P11: 1.5 | Q11: 6.45 | R11: 0.5 | S11: =IF(SUM(P11:Q11)>0,(P11+Q11-R11),0) -> 7.45 | T11: =SUM(K11,O11,S11) -> 23.25
A12: 7 | B12: ŠK ŠG GY-TA Poprad | C12: 7 | D12: Bírová | E12: Silvia | F12: 2009 | G12: ŠK ŠG GY-TA Poprad | H12: 1.6 | I12: 6.85 | J12: 4 | K12: =IF(SUM(H12:I12)>0,(H12+I12-J12),0) -> 4.45 | L12: 2.7 | M12: 7.03 | O12: =IF(SUM(L12:M12)>0,(L12+M12-N12),0) -> 9.73 | P12: 1.5 | Q12: 7.4 | R12: 0.5 | S12: =IF(SUM(P12:Q12)>0,(P12+Q12-R12),0) -> 8.4 | T12: =SUM(K12,O12,S12) -> 22.58
A13: 8 | B13: ŠK ŠG GY-TA Poprad | C13: 8 | D13: Čongvová | E13: Jela | F13: 2009 | G13: ŠK ŠG GY-TA Poprad | H13: 1.7 | I13: 4.7 | K13: =IF(SUM(H13:I13)>0,(H13+I13-J13),0) -> 6.4 | L13: 2.6 | M13: 5.6 | O13: =IF(SUM(L13:M13)>0,(L13+M13-N13),0) -> 8.2 | P13: 1.5 | Q13: 6.35 | R13: 0.5 | S13: =IF(SUM(P13:Q13)>0,(P13+Q13-R13),0) -> 7.35 | T13: =SUM(K13,O13,S13) -> 21.95
A14: 9 | B14: KSG SK Přerov | C14: 9 | D14: Medvědová | E14: Vendula | F14: 2009 | G14: KSG SK Přerov | H14: 1.5 | I14: 7.6 | J14: 4 | K14: =IF(SUM(H14:I14)>0,(H14+I14-J14),0) -> 5.1 | L14: 2.4 | M14: 6.6 | O14: =IF(SUM(L14:M14)>0,(L14+M14-N14),0) -> 9 | P14: 1.3 | Q14: 6.9 | R14: 0.5 | S14: =IF(SUM(P14:Q14)>0,(P14+Q14-R14),0) -> 7.7 | T14: =SUM(K14,O14,S14) -> 21.8
A15: 10 | B15: TJ Sokol Bučovice | C15: 10 | D15: Nebojsová | E15: Zuzana | F15: 2009 | G15: TJ Sokol Bučovice | H15: 1.5 | I15: 7.3 | J15: 4 | K15: =IF(SUM(H15:I15)>0,(H15+I15-J15),0) -> 4.8 | L15: 1.5 | M15: 6.93 | O15: =IF(SUM(L15:M15)>0,(L15+M15-N15),0) -> 8.43 | P15: 1.4 | Q15: 7.15 | R15: 0.5 | S15: =IF(SUM(P15:Q15)>0,(P15+Q15-R15),0) -> 8.05 | T15: =SUM(K15,O15,S15) -> 21.28
A16: 11 | B16: GK Šumperk | C16: 11 | D16: Navrátilová | E16: Valerie | F16: 2009 | G16: GK Šumperk | H16: 1 | I16: 6 | J16: 4 | K16: =IF(SUM(H16:I16)>0,(H16+I16-J16),0) -> 3 | L16: 2.5 | M16: 5.8 | O16: =IF(SUM(L16:M16)>0,(L16+M16-N16),0) -> 8.3 | P16: 1.2 | Q16: 7.15 | R16: 0.5 | S16: =IF(SUM(P16:Q16)>0,(P16+Q16-R16),0) -> 7.85 | T16: =SUM(K16,O16,S16) -> 19.15
A17: 12 | B17: ŠK ŠG GY-TA Poprad | C17: 12 | D17: Horská | E17: Katarína | F17: 2009 | G17: ŠK ŠG GY-TA Poprad | H17: 1.6 | I17: 4.5 | J17: 4 | K17: =IF(SUM(H17:I17)>0,(H17+I17-J17),0) -> 2.1 | L17: 1.6 | M17: 7.36 | O17: =IF(SUM(L17:M17)>0,(L17+M17-N17),0) -> 8.96 | P17: 1.4 | Q17: 7.05 | R17: 0.5 | S17: =IF(SUM(P17:Q17)>0,(P17+Q17-R17),0) -> 7.95 | T17: =SUM(K17,O17,S17) -> 19.01
A18: 13 | B18: KŠG-Liptovský Mikuláš | C18: 13 | D18: Stejskalová | E18: Klára | F18: 2009 | G18: KŠG-Liptovský Mikuláš | H18: 1 | I18: 6.9 | J18: 4 | K18: =IF(SUM(H18:I18)>0,(H18+I18-J18),0) -> 3.9 | L18: 0.9 | M18: 5.34 | O18: =IF(SUM(L18:M18)>0,(L18+M18-N18),0) -> 6.24 | P18: 0.9 | Q18: 6.25 | R18: 0.5 | S18: =IF(SUM(P18:Q18)>0,(P18+Q18-R18),0) -> 6.65 | T18: =SUM(K18,O18,S18) -> 16.79
A19: 16 - 17 | B19: 0 | C19: 16 | K19: =IF(SUM(H19:I19)>0,(H19+I19-J19),0) -> 0 | O19: =IF(SUM(L19:M19)>0,(L19+M19-N19),0) -> 0 | S19: =IF(SUM(P19:Q19)>0,(P19+Q19-R19),0) -> 0 | T19: =SUM(K19,O19,S19) -> 0
A20: 17 - 18 | B20: 0 | C20: 17 | K20: =IF(SUM(H20:I20)>0,(H20+I20-J20),0) -> 0 | O20: =IF(SUM(L20:M20)>0,(L20+M20-N20),0) -> 0 | S20: =IF(SUM(P20:Q20)>0,(P20+Q20-R20),0) -> 0 | T20: =SUM(K20,O20,S20) -> 0
A21: 18 - 19 | B21: 0 | C21: 18 | K21: =IF(SUM(H21:I21)>0,(H21+I21-J21),0) -> 0 | O21: =IF(SUM(L21:M21)>0,(L21+M21-N21),0) -> 0 | S21: =IF(SUM(P21:Q21)>0,(P21+Q21-R21),0) -> 0 | T21: =SUM(K21,O21,S21) -> 0
A22: 19 - 20 | B22: 0 | C22: 19 | K22: =IF(SUM(H22:I22)>0,(H22+I22-J22),0) -> 0 | O22: =IF(SUM(L22:M22)>0,(L22+M22-N22),0) -> 0 | S22: =IF(SUM(P22:Q22)>0,(P22+Q22-R22),0) -> 0 | T22: =SUM(K22,O22,S22) -> 0
A23: 20 - 21 | B23: 0 | C23: 20 | K23: =IF(SUM(H23:I23)>0,(H23+I23-J23),0) -> 0 | O23: =IF(SUM(L23:M23)>0,(L23+M23-N23),0) -> 0 | S23: =IF(SUM(P23:Q23)>0,(P23+Q23-R23),0) -> 0 | T23: =SUM(K23,O23,S23) -> 0
A24: 21 - 22 | B24: 0 | C24: 21 | K24: =IF(SUM(H24:I24)>0,(H24+I24-J24),0) -> 0 | O24: =IF(SUM(L24:M24)>0,(L24+M24-N24),0) -> 0 | S24: =IF(SUM(P24:Q24)>0,(P24+Q24-R24),0) -> 0 | T24: =SUM(K24,O24,S24) -> 0
A25: 22 - 23 | B25: 0 | C25: 22 | K25: =IF(SUM(H25:I25)>0,(H25+I25-J25),0) -> 0 | O25: =IF(SUM(L25:M25)>0,(L25+M25-N25),0) -> 0 | S25: =IF(SUM(P25:Q25)>0,(P25+Q25-R25),0) -> 0 | T25: =SUM(K25,O25,S25) -> 0
A26: 23 - 24 | B26: 0 | C26: 23 | K26: =IF(SUM(H26:I26)>0,(H26+I26-J26),0) -> 0 | O26: =IF(SUM(L26:M26)>0,(L26+M26-N26),0) -> 0 | S26: =IF(SUM(P26:Q26)>0,(P26+Q26-R26),0) -> 0 | T26: =SUM(K26,O26,S26) -> 0
A27: 24 - | B27: 0 | C27: 24 | K27: =IF(SUM(H27:I27)>0,(H27+I27-J27),0) -> 0 | O27: =IF(SUM(L27:M27)>0,(L27+M27-N27),0) -> 0 | S27: =IF(SUM(P27:Q27)>0,(P27+Q27-R27),0) -> 0 | T27: =SUM(K27,O27,S27) -> 0
K28: =IF(SUM(H28:I28)>0,(H28+I28-J28),0) -> 0 | O28: =IF(SUM(L28:M28)>0,(L28+M28-N28),0) -> 0 | S28: =IF(SUM(P28:Q28)>0,(P28+Q28-R28),0) -> 0 | T28: =SUM(K28,O28,S28) -> 0
K29: =IF(SUM(H29:I29)>0,(H29+I29-J29),0) -> 0 | O29: =IF(SUM(L29:M29)>0,(L29+M29-N29),0) -> 0 | S29: =IF(SUM(P29:Q29)>0,(P29+Q29-R29),0) -> 0 | T29: =SUM(K29,O29,S29) -> 0
A30: =IF(T30=T31,C30&" - "&C31,IF(T30=T29,C29&" - "&C30,C30)) -> 25 - 26 | B30: =G30 -> 0 | C30: 25 | K30: =IF(SUM(H30:I30)>0,(H30+I30-J30),0) -> 0 | O30: =IF(SUM(L30:M30)>0,(L30+M30-N30),0) -> 0 | S30: =IF(SUM(P30:Q30)>0,(P30+Q30-R30),0) -> 0 | T30: =SUM(K30,O30,S30) -> 0
A31: 26 - 27 | B31: 0 | C31: 26 | K31: =IF(SUM(H31:I31)>0,(H31+I31-J31),0) -> 0 | O31: =IF(SUM(L31:M31)>0,(L31+M31-N31),0) -> 0 | S31: =IF(SUM(P31:Q31)>0,(P31+Q31-R31),0) -> 0 | T31: =SUM(K31,O31,S31) -> 0
A32: 27 - 28 | B32: 0 | C32: 27 | K32: =IF(SUM(H32:I32)>0,(H32+I32-J32),0) -> 0 | O32: =IF(SUM(L32:M32)>0,(L32+M32-N32),0) -> 0 | S32: =IF(SUM(P32:Q32)>0,(P32+Q32-R32),0) -> 0 | T32: =SUM(K32,O32,S32) -> 0
A33: 28 - 29 | B33: 0 | C33: 28 | K33: =IF(SUM(H33:I33)>0,(H33+I33-J33),0) -> 0 | O33: =IF(SUM(L33:M33)>0,(L33+M33-N33),0) -> 0 | S33: =IF(SUM(P33:Q33)>0,(P33+Q33-R33),0) -> 0 | T33: =SUM(K33,O33,S33) -> 0
A34: 29 - 30 | B34: 0 | C34: 29 | K34: =IF(SUM(H34:I34)>0,(H34+I34-J34),0) -> 0 | O34: =IF(SUM(L34:M34)>0,(L34+M34-N34),0) -> 0 | S34: =IF(SUM(P34:Q34)>0,(P34+Q34-R34),0) -> 0 | T34: =SUM(K34,O34,S34) -> 0
A35: 30 - 31 | B35: 0 | C35: 30 | K35: =IF(SUM(H35:I35)>0,(H35+I35-J35),0) -> 0 | O35: =IF(SUM(L35:M35)>0,(L35+M35-N35),0) -> 0 | S35: =IF(SUM(P35:Q35)>0,(P35+Q35-R35),0) -> 0 | T35: =SUM(K35,O35,S35) -> 0
A36: 31 - 32 | B36: 0 | C36: 31 | K36: =IF(SUM(H36:I36)>0,(H36+I36-J36),0) -> 0 | O36: =IF(SUM(L36:M36)>0,(L36+M36-N36),0) -> 0 | S36: =IF(SUM(P36:Q36)>0,(P36+Q36-R36),0) -> 0 | T36: =SUM(K36,O36,S36) -> 0
A37: 32 - 33 | B37: 0 | C37: 32
A38: 33 - | B38: 0 | C38: 33
D40: Ředitel závodu: Mgr. Zdena Langerová | H40: Hlavní rozhodčí: Mgr. Kateřina Valová | P40: Rozhodčí:

Sheet Kategorie II. - 2008
G1: Memoriál Petry Urbáškové - 22. ročník
G2: 2018-04-24
G3: Kategorie II.
A5: čítač | B5: Oddíl | C5: Poř. | D5: Příjmení, Jméno | F5: Ročník | G5: Oddíl | H5: D | I5: E | J5: Pen. | K5: S | L5: D | M5: E | N5: Pen. | O5: S | P5: D | Q5: E | R5: Pen. | S5: S | T5: Celkem
A6: =IF(T6=T7,C6&" - "&C7,IF(T6=T5,C5&" - "&C6,C6)) -> 1 | B6: =G6 -> GK ŠK UMB B.Bystrica | C6: 1 | D6: Boľošová | E6: Liliana | F6: 2008 | G6: GK ŠK UMB B.Bystrica | H6: 2.5 | I6: 7.9 | K6: =IF(SUM(H6:I6)>0,(H6+I6-J6),0) -> 10.4 | L6: 3.5 | M6: 6.83 | O6: =IF(SUM(L6:M6)>0,(L6+M6-N6),0) -> 10.33 | P6: 2.3 | Q6: 7.85 | S6: =IF(SUM(P6:Q6)>0,(P6+Q6-R6),0) -> 10.15 | T6: =SUM(K6,O6,S6) -> 30.88
A7: 2 | B7: KSG SK Přerov | C7: 2 | D7: Borková | E7: Christina | F7: 2008 | G7: KSG SK Přerov | H7: 2.5 | I7: 7.35 | K7: =IF(SUM(H7:I7)>0,(H7+I7-J7),0) -> 9.85 | L7: 3.1 | M7: 6.9 | O7: =IF(SUM(L7:M7)>0,(L7+M7-N7),0) -> 10 | P7: 2.2 | Q7: 7.2 | S7: =IF(SUM(P7:Q7)>0,(P7+Q7-R7),0) -> 9.4 | T7: =SUM(K7,O7,S7) -> 29.25
A8: 3 | B8: GK ŠK UMB B.Bystrica | C8: 3 | D8: Rosputinská | E8: Adela | F8: 2008 | G8: GK ŠK UMB B.Bystrica | H8: 2.5 | I8: 7.2 | K8: =IF(SUM(H8:I8)>0,(H8+I8-J8),0) -> 9.7 | L8: 3 | M8: 6.23 | O8: =IF(SUM(L8:M8)>0,(L8+M8-N8),0) -> 9.23 | P8: 2.4 | Q8: 7.75 | S8: =IF(SUM(P8:Q8)>0,(P8+Q8-R8),0) -> 10.15 | T8: =SUM(K8,O8,S8) -> 29.08
A9: 4 | B9: GK Šumperk | C9: 4 | D9: Paraska | E9: Anna | F9: 2008 | G9: GK Šumperk | H9: 2.3 | I9: 6.2 | K9: =IF(SUM(H9:I9)>0,(H9+I9-J9),0) -> 8.5 | L9: 2.5 | M9: 7.5 | O9: =IF(SUM(L9:M9)>0,(L9+M9-N9),0) -> 10 | P9: 2.1 | Q9: 7.85 | S9: =IF(SUM(P9:Q9)>0,(P9+Q9-R9),0) -> 9.95 | T9: =SUM(K9,O9,S9) -> 28.45
A10: 5 | B10: GK Šumperk | C10: 5 | D10: Paraska | E10: Marie | F10: 2008 | G10: GK Šumperk | H10: 2.1 | I10: 8.2 | J10: 4 | K10: =IF(SUM(H10:I10)>0,(H10+I10-J10),0) -> 6.3 | L10: 3 | M10: 7.16 | O10: =IF(SUM(L10:M10)>0,(L10+M10-N10),0) -> 10.16 | P10: 2.2 | Q10: 7.9 | S10: =IF(SUM(P10:Q10)>0,(P10+Q10-R10),0) -> 10.1 | T10: =SUM(K10,O10,S10) -> 26.56
A11: 6 | B11: GK Šumperk | C11: 6 | D11: Diňová | E11: Amélie Anděla | F11: 2008 | G11: GK Šumperk | H11: 1.7 | I11: 5.45 | K11: =IF(SUM(H11:I11)>0,(H11+I11-J11),0) -> 7.15 | L11: 2.9 | M11: 6.56 | O11: =IF(SUM(L11:M11)>0,(L11+M11-N11),0) -> 9.46 | P11: 1.6 | Q11: 7.05 | R11: 0.5 | S11: =IF(SUM(P11:Q11)>0,(P11+Q11-R11),0) -> 8.15 | T11: =SUM(K11,O11,S11) -> 24.76
A12: 7 | B12: TJ Šumperk | C12: 7 | D12: Šimková | E12: Kristyna | F12: 2008 | G12: TJ Šumperk | H12: 1.5 | I12: 7.6 | J12: 4 | K12: =IF(SUM(H12:I12)>0,(H12+I12-J12),0) -> 5.1 | L12: 1.6 | M12: 6.16 | O12: =IF(SUM(L12:M12)>0,(L12+M12-N12),0) -> 7.76 | P12: 1.3 | Q12: 8.05 | R12: 0.5 | S12: =IF(SUM(P12:Q12)>0,(P12+Q12-R12),0) -> 8.85 | T12: =SUM(K12,O12,S12) -> 21.71
A13: =IF(T13=T14,C13&" - "&C14,IF(T13=T12,C12&" - "&C13,C13)) -> 8 | B13: TJ Šumperk | C13: 8 | D13: Šérová | E13: Jana | F13: 2008 | G13: TJ Šumperk | H13: 1.6 | I13: 6.65 | J13: 4 | K13: =IF(SUM(H13:I13)>0,(H13+I13-J13),0) -> 4.25 | L13: 2.6 | M13: 5.9 | O13: =IF(SUM(L13:M13)>0,(L13+M13-N13),0) -> 8.5 | P13: 1.4 | Q13: 7.15 | R13: 0.5 | S13: =IF(SUM(P13:Q13)>0,(P13+Q13-R13),0) -> 8.05 | T13: =SUM(K13,O13,S13) -> 20.8
A14: 9 | B14: KŠG-Liptovský Mikuláš | C14: 9 | D14: Macková | E14: Adela | F14: 2008 | G14: KŠG-Liptovský Mikuláš | H14: 1.6 | I14: 6.9 | J14: 4 | K14: =IF(SUM(H14:I14)>0,(H14+I14-J14),0) -> 4.5 | L14: 1.5 | M14: 6.23 | O14: =IF(SUM(L14:M14)>0,(L14+M14-N14),0) -> 7.73 | P14: 1.5 | Q14: 7.05 | R14: 0.5 | S14: =IF(SUM(P14:Q14)>0,(P14+Q14-R14),0) -> 8.05 | T14: =SUM(K14,O14,S14) -> 20.28
A15: 11 | B15: KŠG-Liptovský Mikuláš | C15: 11 | D15: Budayová | E15: Lucia | F15: 2008 | G15: KŠG-Liptovský Mikuláš | H15: 1.6 | I15: 5.6 | J15: 4 | K15: =IF(SUM(H15:I15)>0,(H15+I15-J15),0) -> 3.2 | L15: 1.6 | M15: 5.86 | O15: =IF(SUM(L15:M15)>0,(L15+M15-N15),0) -> 7.46 | P15: 1.5 | Q15: 6.65 | R15: 0.5 | S15: =IF(SUM(P15:Q15)>0,(P15+Q15-R15),0) -> 7.65 | T15: =SUM(K15,O15,S15) -> 18.31
A16: 12 | B16: GK Šumperk | C16: 12 | D16: Bruštíková | E16: Rozálie | F16: 2008 | G16: GK Šumperk | H16: 0.3 | I16: 7.9 | J16: 6 | K16: =IF(SUM(H16:I16)>0,(H16+I16-J16),0) -> 2.2 | L16: 1.4 | M16: 5.93 | O16: =IF(SUM(L16:M16)>0,(L16+M16-N16),0) -> 7.33 | P16: 1.2 | Q16: 6.45 | R16: 0.5 | S16: =IF(SUM(P16:Q16)>0,(P16+Q16-R16),0) -> 7.15 | T16: =SUM(K16,O16,S16) -> 16.68
A17: 13 | B17: Tj Šumperk | C17: 13 | D17: Tatoušková | E17: Anna | F17: 2008 | G17: Tj Šumperk | H17: 1 | I17: 5.9 | J17: 4 | K17: =IF(SUM(H17:I17)>0,(H17+I17-J17),0) -> 2.9 | L17: 1.6 | M17: 3.6 | O17: =IF(SUM(L17:M17)>0,(L17+M17-N17),0) -> 5.2 | P17: 1.3 | Q17: 7.75 | R17: 0.5 | S17: =IF(SUM(P17:Q17)>0,(P17+Q17-R17),0) -> 8.55 | T17: =SUM(K17,O17,S17) -> 16.65
A18: =IF(T18=T19,C18&" - "&C19,IF(T18=T17,C17&" - "&C18,C18)) -> 14 | B18: =G18 -> ŠK ŠG GY-TA Poprad | C18: 14 | D18: Dunajová | E18: Saskia | F18: 2008 | G18: ŠK ŠG GY-TA Poprad | H18: 0.9 | I18: 5.75 | J18: 6 | K18: =IF(SUM(H18:I18)>0,(H18+I18-J18),0) -> 0.65 | L18: 1.6 | M18: 5.23 | O18: =IF(SUM(L18:M18)>0,(L18+M18-N18),0) -> 6.83 | P18: 1.3 | Q18: 6 | R18: 0.5 | S18: =IF(SUM(P18:Q18)>0,(P18+Q18-R18),0) -> 6.8 | T18: =SUM(K18,O18,S18) -> 14.28
A19: =IF(T19=T20,C19&" - "&C20,IF(T19=T18,C18&" - "&C19,C19)) -> 15 - | B19: =G19 -> TJ Šumperk | C19: 15 | D19: Fabiánová | E19: Marie | F19: 2008 | G19: TJ Šumperk | K19: =IF(SUM(H19:I19)>0,(H19+I19-J19),0) -> 0 | O19: =IF(SUM(L19:M19)>0,(L19+M19-N19),0) -> 0 | S19: =IF(SUM(P19:Q19)>0,(P19+Q19-R19),0) -> 0 | T19: =SUM(K19,O19,S19) -> 0
A20: =IF(T20=T21,C20&" - "&C21,IF(T20=T19,C19&" - "&C20,C20)) -> - | K20: =IF(SUM(H20:I20)>0,(H20+I20-J20),0) -> 0 | O20: =IF(SUM(L20:M20)>0,(L20+M20-N20),0) -> 0 | S20: =IF(SUM(P20:Q20)>0,(P20+Q20-R20),0) -> 0 | T20: =SUM(K20,O20,S20) -> 0
A21: =IF(T21=T22,C21&" - "&C22,IF(T21=T20,C20&" - "&C21,C21)) -> - | B21: =G21 -> 0 | K21: =IF(SUM(H21:I21)>0,(H21+I21-J21),0) -> 0 | O21: =IF(SUM(L21:M21)>0,(L21+M21-N21),0) -> 0 | S21: =IF(SUM(P21:Q21)>0,(P21+Q21-R21),0) -> 0 | T21: =SUM(K21,O21,S21) -> 0
A22: =IF(T22=T23,C22&" - "&C23,IF(T22=T21,C21&" - "&C22,C22)) -> - | B22: =G22 -> 0 | K22: =IF(SUM(H22:I22)>0,(H22+I22-J22),0) -> 0 | O22: =IF(SUM(L22:M22)>0,(L22+M22-N22),0) -> 0 | S22: =IF(SUM(P22:Q22)>0,(P22+Q22-R22),0) -> 0 | T22: =SUM(K22,O22,S22) -> 0
K23: =IF(SUM(H23:I23)>0,(H23+I23-J23),0) -> 0 | O23: =IF(SUM(L23:M23)>0,(L23+M23-N23),0) -> 0 | S23: =IF(SUM(P23:Q23)>0,(P23+Q23-R23),0) -> 0 | T23: =SUM(K23,O23,S23) -> 0
A24: =IF(T24=T25,C24&" - "&C25,IF(T24=T23,C23&" - "&C24,C24)) -> 19 - 20 | B24: =G24 -> 0 | C24: 19 | K24: =IF(SUM(H24:I24)>0,(H24+I24-J24),0) -> 0 | O24: =IF(SUM(L24:M24)>0,(L24+M24-N24),0) -> 0 | S24: =IF(SUM(P24:Q24)>0,(P24+Q24-R24),0) -> 0 | T24: =SUM(K24,O24,S24) -> 0
A25: 20 - 21 | B25: 0 | C25: 20 | K25: =IF(SUM(H25:I25)>0,(H25+I25-J25),0) -> 0 | O25: =IF(SUM(L25:M25)>0,(L25+M25-N25),0) -> 0 | S25: =IF(SUM(P25:Q25)>0,(P25+Q25-R25),0) -> 0 | T25: =SUM(K25,O25,S25) -> 0
A26: 21 - 22 | B26: 0 | C26: 21 | K26: =IF(SUM(H26:I26)>0,(H26+I26-J26),0) -> 0 | O26: =IF(SUM(L26:M26)>0,(L26+M26-N26),0) -> 0 | S26: =IF(SUM(P26:Q26)>0,(P26+Q26-R26),0) -> 0 | T26: =SUM(K26,O26,S26) -> 0
A27: 22 - 23 | B27: 0 | C27: 22 | K27: =IF(SUM(H27:I27)>0,(H27+I27-J27),0) -> 0 | O27: =IF(SUM(L27:M27)>0,(L27+M27-N27),0) -> 0 | S27: =IF(SUM(P27:Q27)>0,(P27+Q27-R27),0) -> 0 | T27: =SUM(K27,O27,S27) -> 0
A28: 23 - 24 | B28: 0 | C28: 23 | K28: =IF(SUM(H28:I28)>0,(H28+I28-J28),0) -> 0 | O28: =IF(SUM(L28:M28)>0,(L28+M28-N28),0) -> 0 | S28: =IF(SUM(P28:Q28)>0,(P28+Q28-R28),0) -> 0 | T28: =SUM(K28,O28,S28) -> 0
A29: 24 - 25 | B29: 0 | C29: 24 | K29: =IF(SUM(H29:I29)>0,(H29+I29-J29),0) -> 0 | O29: =IF(SUM(L29:M29)>0,(L29+M29-N29),0) -> 0 | S29: =IF(SUM(P29:Q29)>0,(P29+Q29-R29),0) -> 0 | T29: =SUM(K29,O29,S29) -> 0
A30: 25 - 26 | B30: 0 | C30: 25 | K30: =IF(SUM(H30:I30)>0,(H30+I30-J30),0) -> 0 | O30: =IF(SUM(L30:M30)>0,(L30+M30-N30),0) -> 0 | S30: =IF(SUM(P30:Q30)>0,(P30+Q30-R30),0) -> 0 | T30: =SUM(K30,O30,S30) -> 0
A31: 26 - 27 | B31: 0 | C31: 26 | K31: =IF(SUM(H31:I31)>0,(H31+I31-J31),0) -> 0 | O31: =IF(SUM(L31:M31)>0,(L31+M31-N31),0) -> 0 | S31: =IF(SUM(P31:Q31)>0,(P31+Q31-R31),0) -> 0 | T31: =SUM(K31,O31,S31) -> 0
A32: 27 - 28 | B32: 0 | C32: 27 | K32: =IF(SUM(H32:I32)>0,(H32+I32-J32),0) -> 0 | O32: =IF(SUM(L32:M32)>0,(L32+M32-N32),0) -> 0 | S32: =IF(SUM(P32:Q32)>0,(P32+Q32-R32),0) -> 0 | T32: =SUM(K32,O32,S32) -> 0
A33: 28 - 29 | B33: 0 | C33: 28 | K33: =IF(SUM(H33:I33)>0,(H33+I33-J33),0) -> 0 | O33: =IF(SUM(L33:M33)>0,(L33+M33-N33),0) -> 0 | S33: =IF(SUM(P33:Q33)>0,(P33+Q33-R33),0) -> 0 | T33: =SUM(K33,O33,S33) -> 0
A34: 29 - 30 | B34: 0 | C34: 29 | K34: =IF(SUM(H34:I34)>0,(H34+I34-J34),0) -> 0 | O34: =IF(SUM(L34:M34)>0,(L34+M34-N34),0) -> 0 | S34: =IF(SUM(P34:Q34)>0,(P34+Q34-R34),0) -> 0 | T34: =SUM(K34,O34,S34) -> 0
A35: 30 - 31 | B35: 0 | C35: 30 | K35: =IF(SUM(H35:I35)>0,(H35+I35-J35),0) -> 0 | O35: =IF(SUM(L35:M35)>0,(L35+M35-N35),0) -> 0 | S35: =IF(SUM(P35:Q35)>0,(P35+Q35-R35),0) -> 0 | T35: =SUM(K35,O35,S35) -> 0
A36: 31 - 32 | B36: 0 | C36: 31 | K36: =IF(SUM(H36:I36)>0,(H36+I36-J36),0) -> 0 | O36: =IF(SUM(L36:M36)>0,(L36+M36-N36),0) -> 0 | S36: =IF(SUM(P36:Q36)>0,(P36+Q36-R36),0) -> 0 | T36: =SUM(K36,O36,S36) -> 0
A37: 32 - 33 | B37: 0 | C37: 32 | K37: =IF(SUM(H37:I37)>0,(H37+I37-J37),0) -> 0 | O37: =IF(SUM(L37:M37)>0,(L37+M37-N37),0) -> 0 | S37: =IF(SUM(P37:Q37)>0,(P37+Q37-R37),0) -> 0 | T37: =SUM(K37,O37,S37) -> 0
A38: 33 - | B38: 0 | C38: 33
D40: Ředitel závodu: Mgr. Zdena Langerová | H40: Hlavní rozhodčí: Mgr. Kateřina Valová | P40: Rozhodčí:

Sheet Kategorie II. - 2007
G1: Memoriál Petry Urbáškové - 22. ročník
G2: 2018-04-24
G3: Kategorie II.
A5: čítač | B5: Oddíl | C5: Poř. | D5: Příjmení, Jméno | F5: Ročník | G5: Oddíl | H5: D | I5: E | J5: Pen. | K5: S | L5: D | M5: E | N5: Pen. | O5: S | P5: D | Q5: E | R5: Pen. | S5: S | T5: Celkem
A6: =IF(T6=T7,C6&" - "&C7,IF(T6=T5,C5&" - "&C6,C6)) -> 1 | B6: =G6 -> TJ Sokol M.Ostrava 1 | C6: 1 | D6: Hájková | E6: Barbora | F6: 2007 | G6: TJ Sokol M.Ostrava 1 | H6: 2.3 | I6: 8.5 | K6: =IF(SUM(H6:I6)>0,(H6+I6-J6),0) -> 10.8 | L6: 3.6 | M6: 8.5 | O6: =IF(SUM(L6:M6)>0,(L6+M6-N6),0) -> 12.1 | P6: 2.4 | Q6: 8.65 | S6: =IF(SUM(P6:Q6)>0,(P6+Q6-R6),0) -> 11.05 | T6: =SUM(K6,O6,S6) -> 33.95
A7: =IF(T7=T8,C7&" - "&C8,IF(T7=T6,C6&" - "&C7,C7)) -> 2 | B7: =G7 -> GK ŠK UMB B.Bystrica | C7: 2 | D7: Bažíková | E7: Ema | F7: 2007 | G7: GK ŠK UMB B.Bystrica | H7: 2.6 | I7: 8.7 | K7: =IF(SUM(H7:I7)>0,(H7+I7-J7),0) -> 11.3 | L7: 3.5 | M7: 8.06 | O7: =IF(SUM(L7:M7)>0,(L7+M7-N7),0) -> 11.56 | P7: 2.6 | Q7: 8 | S7: =IF(SUM(P7:Q7)>0,(P7+Q7-R7),0) -> 10.6 | T7: =SUM(K7,O7,S7) -> 33.46
A8: =IF(T8=T9,C8&" - "&C9,IF(T8=T7,C7&" - "&C8,C8)) -> 3 | B8: =G8 -> GK Šumperk | C8: 3 | D8: Žandová | E8: Sabina | F8: 2007 | G8: GK Šumperk | H8: 2.7 | I8: 8.25 | K8: =IF(SUM(H8:I8)>0,(H8+I8-J8),0) -> 10.95 | L8: 3.3 | M8: 7.83 | O8: =IF(SUM(L8:M8)>0,(L8+M8-N8),0) -> 11.13 | P8: 2.4 | Q8: 8.65 | S8: =IF(SUM(P8:Q8)>0,(P8+Q8-R8),0) -> 11.05 | T8: =SUM(K8,O8,S8) -> 33.13
A9: =IF(T9=T10,C9&" - "&C10,IF(T9=T8,C8&" - "&C9,C9)) -> 4 | B9: =G9 -> TJ Sokol M.Ostrava 1 | C9: 4 | D9: Pisková | E9: Eliška | F9: 2007 | G9: TJ Sokol M.Ostrava 1 | H9: 2.4 | I9: 8.05 | K9: =IF(SUM(H9:I9)>0,(H9+I9-J9),0) -> 10.45 | L9: 3.6 | M9: 7.23 | O9: =IF(SUM(L9:M9)>0,(L9+M9-N9),0) -> 10.83 | P9: 2.9 | Q9: 8.8 | S9: =IF(SUM(P9:Q9)>0,(P9+Q9-R9),0) -> 11.7 | T9: =SUM(K9,O9,S9) -> 32.98
A10: 1900-01-08 | B10: =G10 -> GK Šumperk | C10: 5 | D10: Friedlová | E10: Kateřina | F10: 2007 | G10: GK Šumperk | H10: 2.5 | I10: 8.05 | K10: =IF(SUM(H10:I10)>0,(H10+I10-J10),0) -> 10.55 | L10: 2.8 | M10: 8.46 | O10: =IF(SUM(L10:M10)>0,(L10+M10-N10),0) -> 11.26 | P10: 2.5 | Q10: 8.15 | S10: =IF(SUM(P10:Q10)>0,(P10+Q10-R10),0) -> 10.65 | T10: =SUM(K10,O10,S10) -> 32.46
B11: KSG SK Přerov | C11: 6 | D11: Bauerová | E11: Karin | F11: 2007 | G11: TJ Lokomotiva Pardubice | H11: 2.3 | I11: 8.4 | K11: =IF(SUM(H11:I11)>0,(H11+I11-J11),0) -> 10.7 | L11: 2.6 | M11: 8 | O11: =IF(SUM(L11:M11)>0,(L11+M11-N11),0) -> 10.6 | P11: 2.5 | Q11: 8.25 | S11: =IF(SUM(P11:Q11)>0,(P11+Q11-R11),0) -> 10.75 | T11: =SUM(K11,O11,S11) -> 32.05
A12: =IF(T12=T13,C12&" - "&C13,IF(T12=T11,C11&" - "&C12,C12)) -> 7 | B12: =G12 -> TJ Šumperk | C12: 7 | D12: Gronychová | E12: Neli | F12: 2007 | G12: TJ Šumperk | H12: 2.4 | I12: 6.6 | K12: =IF(SUM(H12:I12)>0,(H12+I12-J12),0) -> 9 | L12: 3 | M12: 7.53 | O12: =IF(SUM(L12:M12)>0,(L12+M12-N12),0) -> 10.53 | P12: 2.1 | Q12: 8.35 | S12: =IF(SUM(P12:Q12)>0,(P12+Q12-R12),0) -> 10.45 | T12: =SUM(K12,O12,S12) -> 29.98
A13: 8 | B13: TJ Sokol Bučovice | C13: 8 | D13: Hrabovská | E13: Klára | F13: 2007 | G13: TJ Sokol Bučovice | H13: 1.7 | I13: 7.1 | K13: =IF(SUM(H13:I13)>0,(H13+I13-J13),0) -> 8.8 | L13: 2 | M13: 7.93 | O13: =IF(SUM(L13:M13)>0,(L13+M13-N13),0) -> 9.93 | P13: 1.4 | Q13: 8.1 | S13: =IF(SUM(P13:Q13)>0,(P13+Q13-R13),0) -> 9.5 | T13: =SUM(K13,O13,S13) -> 28.23
A14: 9 | B14: TJ Sokol Kopřivnice | C14: 9 | D14: Prokopová | E14: Tereza | F14: 2007 | G14: TJ Sokol Kopřivnice | H14: 1.7 | I14: 7.15 | K14: =IF(SUM(H14:I14)>0,(H14+I14-J14),0) -> 8.85 | L14: 2.8 | M14: 7 | O14: =IF(SUM(L14:M14)>0,(L14+M14-N14),0) -> 9.8 | P14: 2.2 | Q14: 7.35 | S14: =IF(SUM(P14:Q14)>0,(P14+Q14-R14),0) -> 9.55 | T14: =SUM(K14,O14,S14) -> 28.2
A15: 10 | B15: ŠK ŠG GY-TA Poprad | C15: 10 | D15: Husáková | E15: Daniela | F15: 2007 | G15: ŠK ŠG GY-TA Poprad | H15: 1.7 | I15: 7.55 | K15: =IF(SUM(H15:I15)>0,(H15+I15-J15),0) -> 9.25 | L15: 2.2 | M15: 6.46 | O15: =IF(SUM(L15:M15)>0,(L15+M15-N15),0) -> 8.66 | P15: 2 | Q15: 6.95 | S15: =IF(SUM(P15:Q15)>0,(P15+Q15-R15),0) -> 8.95 | T15: =SUM(K15,O15,S15) -> 26.86
A16: 11 | B16: GK Šumperk | C16: 11 | D16: Bruštíková | E16: Amélie | F16: 2007 | G16: GK Šumperk | H16: 1 | I16: 7.6 | J16: 4 | K16: =IF(SUM(H16:I16)>0,(H16+I16-J16),0) -> 4.6 | L16: 2.5 | M16: 6.63 | O16: =IF(SUM(L16:M16)>0,(L16+M16-N16),0) -> 9.13 | P16: 1.4 | Q16: 7.6 | R16: 0.5 | S16: =IF(SUM(P16:Q16)>0,(P16+Q16-R16),0) -> 8.5 | T16: =SUM(K16,O16,S16) -> 22.23
A17: 12 | B17: KSG SK Přerov | C17: 12 | D17: Zaoralová | E17: Nikol | F17: 2007 | G17: KSG SK Přerov | H17: 1.7 | I17: 4.7 | K17: =IF(SUM(H17:I17)>0,(H17+I17-J17),0) -> 6.4 | L17: 1.6 | M17: 4.5 | O17: =IF(SUM(L17:M17)>0,(L17+M17-N17),0) -> 6.1 | P17: 1.9 | Q17: 6.55 | S17: =IF(SUM(P17:Q17)>0,(P17+Q17-R17),0) -> 8.45 | T17: =SUM(K17,O17,S17) -> 20.95
A18: 13 | B18: GK Šumperk | C18: 13 | D18: Machytková | E18: Julie | F18: 2007 | G18: GK Šumperk | H18: 1 | I18: 7.4 | J18: 4 | K18: =IF(SUM(H18:I18)>0,(H18+I18-J18),0) -> 4.4 | L18: 2.1 | M18: 6.1 | O18: =IF(SUM(L18:M18)>0,(L18+M18-N18),0) -> 8.2 | P18: 1.4 | Q18: 7.05 | R18: 0.5 | S18: =IF(SUM(P18:Q18)>0,(P18+Q18-R18),0) -> 7.95 | T18: =SUM(K18,O18,S18) -> 20.55
A19: 14 | B19: KŠG-Liptovský Mikuláš | C19: 14 | D19: Mikušová | E19: Sandra | F19: 2007 | G19: KŠG-Liptovský Mikuláš | H19: 1 | I19: 7.15 | J19: 4 | K19: =IF(SUM(H19:I19)>0,(H19+I19-J19),0) -> 4.15 | L19: 2 | M19: 5.96 | O19: =IF(SUM(L19:M19)>0,(L19+M19-N19),0) -> 7.96 | P19: 1.4 | Q19: 6.15 | R19: 0.5 | S19: =IF(SUM(P19:Q19)>0,(P19+Q19-R19),0) -> 7.05 | T19: =SUM(K19,O19,S19) -> 19.16
A20: 15 - 16 | B20: 0 | C20: 15 | K20: =IF(SUM(H20:I20)>0,(H20+I20-J20),0) -> 0 | O20: =IF(SUM(L20:M20)>0,(L20+M20-N20),0) -> 0 | S20: =IF(SUM(P20:Q20)>0,(P20+Q20-R20),0) -> 0 | T20: =SUM(K20,O20,S20) -> 0
A21: 16 - 17 | B21: 0 | C21: 16 | K21: =IF(SUM(H21:I21)>0,(H21+I21-J21),0) -> 0 | O21: =IF(SUM(L21:M21)>0,(L21+M21-N21),0) -> 0 | S21: =IF(SUM(P21:Q21)>0,(P21+Q21-R21),0) -> 0 | T21: =SUM(K21,O21,S21) -> 0
A22: 17 - 18 | B22: 0 | C22: 17 | K22: =IF(SUM(H22:I22)>0,(H22+I22-J22),0) -> 0 | O22: =IF(SUM(L22:M22)>0,(L22+M22-N22),0) -> 0 | S22: =IF(SUM(P22:Q22)>0,(P22+Q22-R22),0) -> 0 | T22: =SUM(K22,O22,S22) -> 0
A23: 18 - 19 | B23: 0 | C23: 18 | K23: =IF(SUM(H23:I23)>0,(H23+I23-J23),0) -> 0 | O23: =IF(SUM(L23:M23)>0,(L23+M23-N23),0) -> 0 | S23: =IF(SUM(P23:Q23)>0,(P23+Q23-R23),0) -> 0 | T23: =SUM(K23,O23,S23) -> 0
A24: 19 - 20 | B24: 0 | C24: 19 | K24: =IF(SUM(H24:I24)>0,(H24+I24-J24),0) -> 0 | O24: =IF(SUM(L24:M24)>0,(L24+M24-N24),0) -> 0 | S24: =IF(SUM(P24:Q24)>0,(P24+Q24-R24),0) -> 0 | T24: =SUM(K24,O24,S24) -> 0
A25: 20 - 21 | B25: 0 | C25: 20 | K25: =IF(SUM(H25:I25)>0,(H25+I25-J25),0) -> 0 | O25: =IF(SUM(L25:M25)>0,(L25+M25-N25),0) -> 0 | S25: =IF(SUM(P25:Q25)>0,(P25+Q25-R25),0) -> 0 | T25: =SUM(K25,O25,S25) -> 0
A26: 21 - 22 | B26: 0 | C26: 21 | K26: =IF(SUM(H26:I26)>0,(H26+I26-J26),0) -> 0 | O26: =IF(SUM(L26:M26)>0,(L26+M26-N26),0) -> 0 | S26: =IF(SUM(P26:Q26)>0,(P26+Q26-R26),0) -> 0 | T26: =SUM(K26,O26,S26) -> 0
A27: 22 - 23 | B27: 0 | C27: 22 | K27: =IF(SUM(H27:I27)>0,(H27+I27-J27),0) -> 0 | O27: =IF(SUM(L27:M27)>0,(L27+M27-N27),0) -> 0 | S27: =IF(SUM(P27:Q27)>0,(P27+Q27-R27),0) -> 0 | T27: =SUM(K27,O27,S27) -> 0
A28: 23 - 24 | B28: 0 | C28: 23 | K28: =IF(SUM(H28:I28)>0,(H28+I28-J28),0) -> 0 | O28: =IF(SUM(L28:M28)>0,(L28+M28-N28),0) -> 0 | S28: =IF(SUM(P28:Q28)>0,(P28+Q28-R28),0) -> 0 | T28: =SUM(K28,O28,S28) -> 0
A29: 24 - 25 | B29: 0 | C29: 24 | K29: =IF(SUM(H29:I29)>0,(H29+I29-J29),0) -> 0 | O29: =IF(SUM(L29:M29)>0,(L29+M29-N29),0) -> 0 | S29: =IF(SUM(P29:Q29)>0,(P29+Q29-R29),0) -> 0 | T29: =SUM(K29,O29,S29) -> 0
A30: =IF(T30=T31,C30&" - "&C31,IF(T30=T29,C29&" - "&C30,C30)) -> 25 - 26 | B30: =G30 -> 0 | C30: 25 | K30: =IF(SUM(H30:I30)>0,(H30+I30-J30),0) -> 0 | O30: =IF(SUM(L30:M30)>0,(L30+M30-N30),0) -> 0 | S30: =IF(SUM(P30:Q30)>0,(P30+Q30-R30),0) -> 0 | T30: =SUM(K30,O30,S30) -> 0
A31: 26 - 27 | B31: 0 | C31: 26 | K31: =IF(SUM(H31:I31)>0,(H31+I31-J31),0) -> 0 | O31: =IF(SUM(L31:M31)>0,(L31+M31-N31),0) -> 0 | S31: =IF(SUM(P31:Q31)>0,(P31+Q31-R31),0) -> 0 | T31: =SUM(K31,O31,S31) -> 0
A32: 27 - 28 | B32: 0 | C32: 27 | K32: =IF(SUM(H32:I32)>0,(H32+I32-J32),0) -> 0 | O32: =IF(SUM(L32:M32)>0,(L32+M32-N32),0) -> 0 | S32: =IF(SUM(P32:Q32)>0,(P32+Q32-R32),0) -> 0 | T32: =SUM(K32,O32,S32) -> 0
A33: 28 - 29 | B33: 0 | C33: 28 | K33: =IF(SUM(H33:I33)>0,(H33+I33-J33),0) -> 0 | O33: =IF(SUM(L33:M33)>0,(L33+M33-N33),0) -> 0 | S33: =IF(SUM(P33:Q33)>0,(P33+Q33-R33),0) -> 0 | T33: =SUM(K33,O33,S33) -> 0
A34: 29 - 30 | B34: 0 | C34: 29 | K34: =IF(SUM(H34:I34)>0,(H34+I34-J34),0) -> 0 | O34: =IF(SUM(L34:M34)>0,(L34+M34-N34),0) -> 0 | S34: =IF(SUM(P34:Q34)>0,(P34+Q34-R34),0) -> 0 | T34: =SUM(K34,O34,S34) -> 0
A35: 30 - 31 | B35: 0 | C35: 30 | K35: =IF(SUM(H35:I35)>0,(H35+I35-J35),0) -> 0 | O35: =IF(SUM(L35:M35)>0,(L35+M35-N35),0) -> 0 | S35: =IF(SUM(P35:Q35)>0,(P35+Q35-R35),0) -> 0 | T35: =SUM(K35,O35,S35) -> 0
A36: 31 - 32 | B36: 0 | C36: 31 | K36: =IF(SUM(H36:I36)>0,(H36+I36-J36),0) -> 0 | O36: =IF(SUM(L36:M36)>0,(L36+M36-N36),0) -> 0 | S36: =IF(SUM(P36:Q36)>0,(P36+Q36-R36),0) -> 0 | T36: =SUM(K36,O36,S36) -> 0
A37: 32 - 33 | B37: 0 | C37: 32 | K37: =IF(SUM(H37:I37)>0,(H37+I37-J37),0) -> 0 | O37: =IF(SUM(L37:M37)>0,(L37+M37-N37),0) -> 0 | S37: =IF(SUM(P37:Q37)>0,(P37+Q37-R37),0) -> 0 | T37: =SUM(K37,O37,S37) -> 0
A38: 33 - | B38: 0 | C38: 33
D40: Ředitel závodu: Mgr. Zdena Langerová | H40: Hlavní rozhodčí: Mgr. Kateřina Valová | P40: Rozhodčí:

Sheet Kategorie III. - 2006
G1: Memoriál Petry Urbáškové - 23. ročník
G2: 2018-04-24
G3: Kategorie III.
A5: čítač | B5: Oddíl | C5: Poř. | D5: Příjmení, Jméno | F5: Ročník | G5: Oddíl | H5: D | I5: E | J5: Pen. | K5: S | L5: D | M5: E | N5: Pen. | O5: S | P5: D | Q5: E | R5: Pen. | S5: S | T5: Celkem
A6: =IF(T6=T7,C6&" - "&C7,IF(T6=T5,C5&" - "&C6,C6)) -> 1 | B6: =G6 -> GK Šumperk | C6: 1 | D6: Peterková | E6: Klára | F6: 2006 | G6: GK Šumperk | H6: 1.3 | I6: 8 | K6: =IF(SUM(H6:I6)>0,(H6+I6-J6),0) -> 9.3 | L6: 4.4 | M6: 8.95 | O6: =IF(SUM(L6:M6)>0,(L6+M6-N6),0) -> 13.35 | P6: 3.2 | Q6: 8.05 | S6: =IF(SUM(P6:Q6)>0,(P6+Q6-R6),0) -> 11.25 | T6: =SUM(K6,O6,S6) -> 33.9
A7: 2 | B7: TJ Lokomotiva Pardubice | C7: 2 | D7: Sirůčková | E7: Anna | F7: 2006 | G7: TJ Lokomotiva Pardubice | H7: 1 | I7: 8.1 | K7: =IF(SUM(H7:I7)>0,(H7+I7-J7),0) -> 9.1 | L7: 3.5 | M7: 7.95 | O7: =IF(SUM(L7:M7)>0,(L7+M7-N7),0) -> 11.45 | P7: 3 | Q7: 7.55 | S7: =IF(SUM(P7:Q7)>0,(P7+Q7-R7),0) -> 10.55 | T7: =SUM(K7,O7,S7) -> 31.1
A8: 3 | B8: GK ŠK UMB B.Bystrica | C8: 3 | D8: Galátová | E8: Nina | F8: 2006 | G8: GK ŠK UMB B.Bystrica | H8: 1.1 | I8: 8.25 | K8: =IF(SUM(H8:I8)>0,(H8+I8-J8),0) -> 9.35 | L8: 3.8 | M8: 6.25 | O8: =IF(SUM(L8:M8)>0,(L8+M8-N8),0) -> 10.05 | P8: 2.9 | Q8: 6.95 | S8: =IF(SUM(P8:Q8)>0,(P8+Q8-R8),0) -> 9.85 | T8: =SUM(K8,O8,S8) -> 29.25
A9: 4 | B9: TJ Sokol M.Ostrava 1 | C9: 4 | D9: Cívelová | E9: Kristina | F9: 2006 | G9: TJ Sokol M.Ostrava 1 | H9: 0.8 | I9: 7.3 | K9: =IF(SUM(H9:I9)>0,(H9+I9-J9),0) -> 8.1 | L9: 3.5 | M9: 8.5 | O9: =IF(SUM(L9:M9)>0,(L9+M9-N9),0) -> 12 | P9: 2.2 | Q9: 6.65 | S9: =IF(SUM(P9:Q9)>0,(P9+Q9-R9),0) -> 8.85 | T9: =SUM(K9,O9,S9) -> 28.95
A10: 5 | B10: TJ Sokol M.Ostrava 1 | C10: 5 | D10: Pačutová | E10: Kateřina | F10: 2006 | G10: TJ Sokol M.Ostrava 1 | H10: 0.8 | I10: 7.45 | K10: =IF(SUM(H10:I10)>0,(H10+I10-J10),0) -> 8.25 | L10: 2.9 | M10: 6.3 | O10: =IF(SUM(L10:M10)>0,(L10+M10-N10),0) -> 9.2 | P10: 2.1 | Q10: 7.9 | S10: =IF(SUM(P10:Q10)>0,(P10+Q10-R10),0) -> 10 | T10: =SUM(K10,O10,S10) -> 27.45
A11: 6 | B11: GK Šumperk | C11: 6 | D11: Diňová | E11: Berenika | F11: 2006 | G11: GK Šumperk | H11: 1 | I11: 7.3 | K11: =IF(SUM(H11:I11)>0,(H11+I11-J11),0) -> 8.3 | L11: 2.9 | M11: 7.4 | O11: =IF(SUM(L11:M11)>0,(L11+M11-N11),0) -> 10.3 | P11: 2.2 | Q11: 6.1 | S11: =IF(SUM(P11:Q11)>0,(P11+Q11-R11),0) -> 8.3 | T11: =SUM(K11,O11,S11) -> 26.9
A12: 7 | B12: GK Šumperk | C12: 7 | D12: Hvižďová | E12: Julie | F12: 2006 | G12: GK Šumperk | H12: 0.9 | I12: 6.9 | K12: =IF(SUM(H12:I12)>0,(H12+I12-J12),0) -> 7.8 | L12: 2.9 | M12: 7.05 | O12: =IF(SUM(L12:M12)>0,(L12+M12-N12),0) -> 9.95 | P12: 2.2 | Q12: 6.35 | S12: =IF(SUM(P12:Q12)>0,(P12+Q12-R12),0) -> 8.55 | T12: =SUM(K12,O12,S12) -> 26.3
A13: 8 | B13: KSG SK Přerov | C13: 8 | D13: Krumpholzová | E13: Justýna | F13: 2006 | G13: KSG SK Přerov | H13: 0.8 | I13: 6.2 | K13: =IF(SUM(H13:I13)>0,(H13+I13-J13),0) -> 7 | L13: 2.6 | M13: 5.85 | O13: =IF(SUM(L13:M13)>0,(L13+M13-N13),0) -> 8.45 | P13: 2.2 | Q13: 6.6 | S13: =IF(SUM(P13:Q13)>0,(P13+Q13-R13),0) -> 8.8 | T13: =SUM(K13,O13,S13) -> 24.25
A14: 9 | B14: TJ Sokol Bučovice | C14: 9 | D14: Duráková | E14: Kateřina | F14: 2006 | G14: TJ Sokol Bučovice | H14: 0.5 | I14: 6.65 | J14: 4 | K14: =IF(SUM(H14:I14)>0,(H14+I14-J14),0) -> 3.15 | L14: 2 | M14: 7.05 | O14: =IF(SUM(L14:M14)>0,(L14+M14-N14),0) -> 9.05 | P14: 1.6 | Q14: 6.8 | S14: =IF(SUM(P14:Q14)>0,(P14+Q14-R14),0) -> 8.4 | T14: =SUM(K14,O14,S14) -> 20.6
A15: 10 | B15: ŠK ŠG GY-TA Poprad | C15: 10 | D15: Handulová | E15: Rebeka | F15: 2006 | G15: ŠK ŠG GY-TA Poprad | H15: 0.6 | I15: 6.6 | J15: 4 | K15: =IF(SUM(H15:I15)>0,(H15+I15-J15),0) -> 3.2 | L15: 2.3 | M15: 6.8 | O15: =IF(SUM(L15:M15)>0,(L15+M15-N15),0) -> 9.1 | P15: 1.5 | Q15: 3.75 | S15: =IF(SUM(P15:Q15)>0,(P15+Q15-R15),0) -> 5.25 | T15: =SUM(K15,O15,S15) -> 17.55
A16: 11 | B16: KŠG-Liptovský Mikuláš | C16: 11 | D16: Jírovcová | E16: Natália-Romana | F16: 2006 | G16: KŠG-Liptovský Mikuláš | H16: 0.3 | I16: 5.75 | J16: 6 | K16: =IF(SUM(H16:I16)>0,(H16+I16-J16),0) -> 0.05 | L16: 2.2 | M16: 6.5 | O16: =IF(SUM(L16:M16)>0,(L16+M16-N16),0) -> 8.7 | P16: 1.7 | Q16: 6.25 | S16: =IF(SUM(P16:Q16)>0,(P16+Q16-R16),0) -> 7.95 | T16: =SUM(K16,O16,S16) -> 16.7
A17: 12 | B17: KSG SK Přerov | C17: 12 | D17: Polidorová | E17: Eliška | F17: 2006 | G17: KSG SK Přerov | H17: 0.3 | I17: 6.25 | J17: 6 | K17: =IF(SUM(H17:I17)>0,(H17+I17-J17),0) -> 0.55 | L17: 2.1 | M17: 5.15 | O17: =IF(SUM(L17:M17)>0,(L17+M17-N17),0) -> 7.25 | P17: 1.4 | Q17: 5.45 | S17: =IF(SUM(P17:Q17)>0,(P17+Q17-R17),0) -> 6.85 | T17: =SUM(K17,O17,S17) -> 14.65
A18: 13 | B18: KSG SK Přerov | C18: 13 | D18: Gadasová | E18: Monika | F18: 2006 | G18: KSG SK Přerov | H18: 0.4 | I18: 3.65 | J18: 6 | K18: 0.4 | L18: 2.8 | M18: 3.95 | O18: =IF(SUM(L18:M18)>0,(L18+M18-N18),0) -> 6.75 | P18: 1.5 | Q18: 5.05 | S18: =IF(SUM(P18:Q18)>0,(P18+Q18-R18),0) -> 6.55 | T18: =SUM(K18,O18,S18) -> 13.7
A19: 14 | B19: GK Šumperk | C19: 14 | D19: Kubíčková | E19: Eliška | F19: 2006 | G19: GK Šumperk | H19: 0.2 | I19: 6.95 | J19: 8 | K19: 0.2 | L19: 1.8 | M19: 3.5 | N19: 5 | O19: =IF(SUM(L19:M19)>0,(L19+M19-N19),0) -> 0.3 | P19: 1.4 | Q19: 6.15 | S19: =IF(SUM(P19:Q19)>0,(P19+Q19-R19),0) -> 7.55 | T19: =SUM(K19,O19,S19) -> 8.05
A20: 15 - 16 | B20: 0 | C20: 15 | K20: =IF(SUM(H20:I20)>0,(H20+I20-J20),0) -> 0 | O20: =IF(SUM(L20:M20)>0,(L20+M20-N20),0) -> 0 | S20: =IF(SUM(P20:Q20)>0,(P20+Q20-R20),0) -> 0 | T20: =SUM(K20,O20,S20) -> 0
A21: 16 - 17 | B21: 0 | C21: 16 | K21: =IF(SUM(H21:I21)>0,(H21+I21-J21),0) -> 0 | O21: =IF(SUM(L21:M21)>0,(L21+M21-N21),0) -> 0 | S21: =IF(SUM(P21:Q21)>0,(P21+Q21-R21),0) -> 0 | T21: =SUM(K21,O21,S21) -> 0
A22: 17 - 18 | B22: 0 | C22: 17 | K22: =IF(SUM(H22:I22)>0,(H22+I22-J22),0) -> 0 | O22: =IF(SUM(L22:M22)>0,(L22+M22-N22),0) -> 0 | S22: =IF(SUM(P22:Q22)>0,(P22+Q22-R22),0) -> 0 | T22: =SUM(K22,O22,S22) -> 0
A23: 18 - 19 | B23: 0 | C23: 18 | K23: =IF(SUM(H23:I23)>0,(H23+I23-J23),0) -> 0 | O23: =IF(SUM(L23:M23)>0,(L23+M23-N23),0) -> 0 | S23: =IF(SUM(P23:Q23)>0,(P23+Q23-R23),0) -> 0 | T23: =SUM(K23,O23,S23) -> 0
A24: 19 - 20 | B24: 0 | C24: 19 | K24: =IF(SUM(H24:I24)>0,(H24+I24-J24),0) -> 0 | O24: =IF(SUM(L24:M24)>0,(L24+M24-N24),0) -> 0 | S24: =IF(SUM(P24:Q24)>0,(P24+Q24-R24),0) -> 0 | T24: =SUM(K24,O24,S24) -> 0
A25: 20 - 21 | B25: 0 | C25: 20 | K25: =IF(SUM(H25:I25)>0,(H25+I25-J25),0) -> 0 | O25: =IF(SUM(L25:M25)>0,(L25+M25-N25),0) -> 0 | S25: =IF(SUM(P25:Q25)>0,(P25+Q25-R25),0) -> 0 | T25: =SUM(K25,O25,S25) -> 0
A26: 21 - 22 | B26: 0 | C26: 21 | K26: =IF(SUM(H26:I26)>0,(H26+I26-J26),0) -> 0 | O26: =IF(SUM(L26:M26)>0,(L26+M26-N26),0) -> 0 | S26: =IF(SUM(P26:Q26)>0,(P26+Q26-R26),0) -> 0 | T26: =SUM(K26,O26,S26) -> 0
A27: 22 - 23 | B27: 0 | C27: 22 | K27: =IF(SUM(H27:I27)>0,(H27+I27-J27),0) -> 0 | O27: =IF(SUM(L27:M27)>0,(L27+M27-N27),0) -> 0 | S27: =IF(SUM(P27:Q27)>0,(P27+Q27-R27),0) -> 0 | T27: =SUM(K27,O27,S27) -> 0
A28: 23 - 24 | B28: 0 | C28: 23 | K28: =IF(SUM(H28:I28)>0,(H28+I28-J28),0) -> 0 | O28: =IF(SUM(L28:M28)>0,(L28+M28-N28),0) -> 0 | S28: =IF(SUM(P28:Q28)>0,(P28+Q28-R28),0) -> 0 | T28: =SUM(K28,O28,S28) -> 0
A29: 24 - 25 | B29: 0 | C29: 24 | K29: =IF(SUM(H29:I29)>0,(H29+I29-J29),0) -> 0 | O29: =IF(SUM(L29:M29)>0,(L29+M29-N29),0) -> 0 | S29: =IF(SUM(P29:Q29)>0,(P29+Q29-R29),0) -> 0 | T29: =SUM(K29,O29,S29) -> 0
A30: 25 - | B30: 0 | C30: 25 | K30: =IF(SUM(H30:I30)>0,(H30+I30-J30),0) -> 0 | O30: =IF(SUM(L30:M30)>0,(L30+M30-N30),0) -> 0 | S30: =IF(SUM(P30:Q30)>0,(P30+Q30-R30),0) -> 0 | T30: =SUM(K30,O30,S30) -> 0
D33: Ředitel závodu: Mgr. Zdena Langerová | H33: Hlavní rozhodčí: Mgr. Kateřina Valová | P33: Rozhodčí:

Sheet Kategorie III. - 2005 a starší
G1: Memoriál Petry Urbáškové - 23. ročník
G2: 2018-04-24
G3: Kategorie III.
A5: čítač | B5: Oddíl | C5: Poř. | D5: Příjmení, Jméno | F5: Ročník | G5: Oddíl | H5: D | I5: E | J5: Pen. | K5: S | L5: D | M5: E | N5: Pen. | O5: S | P5: D | Q5: E | R5: Pen. | S5: S | T5: Celkem
A6: =IF(T6=T7,C6&" - "&C7,IF(T6=T5,C5&" - "&C6,C6)) -> 1 | B6: =G6 -> TJ Sokol M.Ostrava 1 | C6: 1 | D6: Schneiderová | E6: Barbora | F6: 2001 | G6: TJ Sokol M.Ostrava 1 | H6: 2.1 | I6: 8.35 | K6: =IF(SUM(H6:I6)>0,(H6+I6-J6),0) -> 10.45 | L6: 4.3 | M6: 7.45 | O6: =IF(SUM(L6:M6)>0,(L6+M6-N6),0) -> 11.75 | P6: 4.1 | Q6: 7.65 | S6: =IF(SUM(P6:Q6)>0,(P6+Q6-R6),0) -> 11.75 | T6: =SUM(K6,O6,S6) -> 33.95
A7: =IF(T7=T8,C7&" - "&C8,IF(T7=T6,C6&" - "&C7,C7)) -> 2 | B7: =G7 -> TJ Lokomotiva Pardubice | C7: 2 | D7: Šťovíčková | E7: Eliška | F7: 2004 | G7: TJ Lokomotiva Pardubice | H7: 1 | I7: 8.55 | K7: =IF(SUM(H7:I7)>0,(H7+I7-J7),0) -> 9.55 | L7: 3.4 | M7: 7.95 | O7: =IF(SUM(L7:M7)>0,(L7+M7-N7),0) -> 11.35 | P7: 3 | Q7: 8.05 | S7: =IF(SUM(P7:Q7)>0,(P7+Q7-R7),0) -> 11.05 | T7: =SUM(K7,O7,S7) -> 31.95
A8: 2018-04-03 | B8: ŠK ŠG GY-TA Poprad | C8: 3 | D8: Jaklová | E8: Klára | F8: 2004 | G8: TJ Sokol M.Ostrava 1 | H8: 0.9 | I8: 8.35 | K8: =IF(SUM(H8:I8)>0,(H8+I8-J8),0) -> 9.25 | L8: 3.6 | M8: 7.2 | O8: =IF(SUM(L8:M8)>0,(L8+M8-N8),0) -> 10.8 | P8: 2.8 | Q8: 8 | S8: =IF(SUM(P8:Q8)>0,(P8+Q8-R8),0) -> 10.8 | T8: =SUM(K8,O8,S8) -> 30.85
A9: 2018-05-04 | B9: TJ Lokomotiva Pardubice | C9: 4 | D9: Smolková | E9: Katarína | F9: 2004 | G9: GK ŠK UMB B.Bystrica | H9: 1.3 | I9: 8.5 | K9: =IF(SUM(H9:I9)>0,(H9+I9-J9),0) -> 9.8 | L9: 3.6 | M9: 6.35 | O9: =IF(SUM(L9:M9)>0,(L9+M9-N9),0) -> 9.95 | P9: 2.4 | Q9: 7.5 | S9: =IF(SUM(P9:Q9)>0,(P9+Q9-R9),0) -> 9.9 | T9: =SUM(K9,O9,S9) -> 29.65
A10: 2018-06-05 | B10: TJ Sokol M.Ostrava 1 | C10: 5 | D10: Šérová | E10: Eliška | F10: 2005 | G10: TJ Šumperk | H10: 0.9 | I10: 6.75 | K10: =IF(SUM(H10:I10)>0,(H10+I10-J10),0) -> 7.65 | L10: 2.7 | M10: 8.15 | O10: =IF(SUM(L10:M10)>0,(L10+M10-N10),0) -> 10.85 | P10: 2.1 | Q10: 5.85 | S10: =IF(SUM(P10:Q10)>0,(P10+Q10-R10),0) -> 7.95 | T10: =SUM(K10,O10,S10) -> 26.45
A11: 6_7 | B11: TJ Sokol M.Ostrava 1 | C11: 6 | D11: Osladilová | E11: Adéla | F11: 2005 | G11: GK Šumperk | H11: 0.5 | I11: 8.3 | J11: 4 | K11: =IF(SUM(H11:I11)>0,(H11+I11-J11),0) -> 4.8 | L11: 2.8 | M11: 7.75 | O11: =IF(SUM(L11:M11)>0,(L11+M11-N11),0) -> 10.55 | P11: 2.4 | Q11: 7.85 | S11: =IF(SUM(P11:Q11)>0,(P11+Q11-R11),0) -> 10.25 | T11: =SUM(K11,O11,S11) -> 25.6
A12: 2018-08-07 | B12: TJ Sokol Bučovice | C12: 7 | D12: Figová Klaudia | E12: Klaudia | F12: 2001 | G12: KŠG-Liptovský Mikuláš | H12: 0.5 | I12: 5.75 | J12: 4 | K12: =IF(SUM(H12:I12)>0,(H12+I12-J12),0) -> 2.25 | L12: 2.1 | M12: 7.45 | O12: =IF(SUM(L12:M12)>0,(L12+M12-N12),0) -> 9.55 | P12: 1.5 | Q12: 6 | S12: =IF(SUM(P12:Q12)>0,(P12+Q12-R12),0) -> 7.5 | T12: =SUM(K12,O12,S12) -> 19.3
A13: 2018-09-08 | B13: KŠG-Liptovský Mikuláš | C13: 8 | D13: Hanousková | E13: Tereza | F13: 2005 | G13: TJ Sokol Bučovice | H13: 0.4 | I13: 6.6 | J13: 6 | K13: =IF(SUM(H13:I13)>0,(H13+I13-J13),0) -> 1 | L13: 2.5 | M13: 6.8 | O13: =IF(SUM(L13:M13)>0,(L13+M13-N13),0) -> 9.3 | P13: 1.5 | Q13: 6.4 | S13: =IF(SUM(P13:Q13)>0,(P13+Q13-R13),0) -> 7.9 | T13: =SUM(K13,O13,S13) -> 18.2
A14: 2018-10-09 | B14: KŠG-Liptovský Mikuláš | C14: 9 | D14: Groussard | E14: Sarah | F14: 2005 | G14: ŠK ŠG GY-TA Poprad | H14: 0.5 | I14: 7.25 | J14: 4 | K14: =IF(SUM(H14:I14)>0,(H14+I14-J14),0) -> 3.75 | L14: 2.2 | M14: 6.95 | O14: =IF(SUM(L14:M14)>0,(L14+M14-N14),0) -> 9.15 | P14: 1.9 | Q14: 3.3 | S14: =IF(SUM(P14:Q14)>0,(P14+Q14-R14),0) -> 5.2 | T14: =SUM(K14,O14,S14) -> 18.1
A15: =IF(T15=T16,C15&" - "&C16,IF(T15=T14,C14&" - "&C15,C15)) -> 10 | B15: TJ Šumperk | C15: 10 | D15: Balejová Diana | E15: Diana | F15: 2005 | G15: KŠG-Liptovský Mikuláš | H15: 0.2 | I15: 8.55 | J15: 8 | K15: =IF(SUM(H15:I15)>0,(H15+I15-J15),0) -> 0.75 | L15: 1.1 | M15: 5.85 | N15: 4 | O15: =IF(SUM(L15:M15)>0,(L15+M15-N15),0) -> 2.95 | P15: 1.3 | Q15: 3.55 | S15: =IF(SUM(P15:Q15)>0,(P15+Q15-R15),0) -> 4.85 | T15: =SUM(K15,O15,S15) -> 8.55 | XFD15: =COUNT(C15:XFC15) -> 14
A16: =IF(T16=T17,C16&" - "&C17,IF(T16=T15,C15&" - "&C16,C16)) -> 11 - 12 | B16: =G16 -> 0 | C16: 11
A17: =IF(T17=T18,C17&" - "&C18,IF(T17=T16,C16&" - "&C17,C17)) -> 12 - 13 | B17: =G17 -> 0 | C17: 12
A18: =IF(T18=T19,C18&" - "&C19,IF(T18=T17,C17&" - "&C18,C18)) -> 13 - 14 | B18: =G18 -> 0 | C18: 13
A19: 14-15 | C19: 14
A20: =IF(T20=T21,C20&" - "&C21,IF(T20=T19,C19&" - "&C20,C20)) -> 15 - 16 | B20: =G20 -> 0 | C20: 15
A21: 16 - 17 | C21: 16
A22: 17 - 18 | C22: 17
A23: 18 - 19 | B23: =G23 -> 0 | C23: 18
A24: 19 - 20 | B24: 0 | C24: 19
A25: 20 - 21 | B25: 0 | C25: 20
A26: 21 - 22 | B26: 0 | C26: 21
A27: 22 - 23 | B27: 0 | C27: 22
A28: 23 - 24 | B28: 0 | C28: 23
A29: 24 - 25 | B29: 0 | C29: 24
A30: 25 - | B30: 0 | C30: 25
D33: Ředitel závodu: Mgr. Zdena Langerová | H33: Hlavní rozhodčí: Mgr. Kateřina Valová | P33: Rozhodčí:

Sheet Družstva
D1: Memoriál Petry Urbáškové - 23. ročník
D2: 2018-04-24
D3: Družstva
B5: Pořadí | C5: Oddíl | D5: Kategorie I. | E5: Body | F5: Kategorie II. | G5: Body | H5: Kategorie III. | I5: Body | J5: Celkem
B6: 1 | C6: TJ Sokol M.Ostrava 1 | D6: Pačutová Mahulena | E6: 26.05 | F6: Hájková Barbora | G6: 33.95 | H6: Schneiderová Barbora | I6: 33.95 | J6: =E6+G6+I6 -> 93.95
B7: 2 | C7: GK Šumperk | D7: Hermannová Markéta | E7: 22.12 | F7: Žandová Sabina | G7: 33.13 | H7: Peterková Klára | I7: 33.9 | J7: =E7+G7+I7 -> 89.15
B8: 3 | C8: KSG SK Přerov | D8: Kubová Barbora | E8: 24.92 | F8: Borková Christina | G8: 29.25 | H8: Krumpholzová Justýna | I8: 24.25 | J8: =E8+G8+I8 -> 78.42
B9: 4 | C9: ŠK ŠG GY-TA Poprad | D9: Šavelová Diana | E9: 22.18 | F9: Husáková Daniela | G9: 26.86 | H9: Groussard Sarah | I9: 18.1 | J9: =E9+G9+I9 -> 67.14
B10: 5 | J10: =E10+G10+I10 -> 0
B11: 6 | J11: =E11+G11+I11 -> 0
B12: 7 | J12: =E12+G12+I12 -> 0
B13: 8 | J13: =E13+G13+I13 -> 0
B14: 9 | J14: =E14+G14+I14 -> 0
B15: 10 | J15: =E15+G15+I15 -> 0
B16: 11 | J16: =E16+G16+I16 -> 0
B17: 12 | J17: =E17+G17+I17 -> 0
B18: 13
B19: 14
B20: 15
B21: 16
B22: 17
B23: 18
B24: 19
B25: 20
B26: 21

Sheet List1
